Cogmind - Beta 10.1 @@@ ROGUE MODE // 2020.10.05 @ 21:59:04 Player: Cracklepappy Result: Destroyed by as-76477 with Assembled Focal Cannon Performance ------------- Evolutions (4) 2000 Regions Visited (17) 3400 Robots Destroyed (207) 1035 Value Destroyed (7000) 7000 Prototype IDs (58) 1160 Alien Tech Used (0) 0 Bonus (2807) 2807 TOTAL SCORE: 17402 Bonus ------- High Alert Combat Kills 811 Follower Combat Kills 604 Aligned with FarCom 300 Met Data Miner 300 Destroyed Z-Imprinter 1000 Friendly Fire -208 Cogmind --------- Core Integrity 0/850 Matter 215/300 Energy 47/100 System Corruption 1% Temperature Cool (6) Movement Core (100) Ox1 Location -6/Deep Caves Parts ------- > --- POWER (2) -------- (None) > --- PROPULSION (6) --- (None) > --- UTILITY (5) ------ (None) > --- WEAPON (2) ------- Powered Hammer Heavy Pick > --- INVENTORY (4) ---- Experimental Heat Sink Advanced Sensor Array Ghost Barrier Hacking Drone Bay (1/1) Peak State ------------ > --- POWER ------------ Light Fission Core Zionite Light DM Reactor > --- PROPULSION ------- Improved VTOL Module Improved VTOL Module Flying Fortress v7 > --- UTILITY ---------- Experimental Heat Sink Medium Storage Unit Large Storage Unit Large Storage Unit Zionite Weapon Casing > --- WEAPON ----------- Improved Proton Missile Launcher Heavy Pick > --- INVENTORY -------- Improved VTOL Module Xenon Bombardment Thruster Experimental Heat Sink High-capacity Matter Pod Advanced Sensor Array Advanced Terrain Scanner System Mapper Ghost Barrier Improved System Backup Module Bomb Drone Bay Hacking Drone Bay Cooled Plasma Cannon Gauss Rifle Coil Gun Guided Missile Launcher Field Lobotomy Kit Powered Hammer [Rating: 89] Favorites ----------- Power Cooled Ion Engine Engine Cooled Ion Engine Power Core Light Nuclear Core Reactor Zionite Light DM Reactor Propulsion Light Treads Treads Light Treads Leg Enhanced Flexi-carbon Leg Wheel Compact Wheel Hover Unit Zionite Glidesys I Flight Unit Improved VTOL Module Utility Large Storage Unit Device Advanced Sensor Array Storage Large Storage Unit Processor Advanced Signal Interpreter Hackware System Shield Protection Reflective Plating Weapon Heavy Assault Rifle Energy Gun Medium Laser Energy Cannon Cooled Plasma Cannon Ballistic Gun Heavy Assault Rifle Launcher Improved Proton Missile Launcher Special Weapon Mining Laser Impact Weapon Powered Hammer Slashing Weapon Scythe Piercing Weapon Heavy Pick Build | -11 -10 -10 -9 -9 -9 -8 -8 -8 -7 -7 -7 -7 -6 -6 -6 -6 -6 ------- Run | Scr Mat Min Mat Min Exi Min Mat Sto Fac Low Low Dat Pro Fac Low Zio Dee Slots Evolved 8 | . . . 2 . . . 2 . 2 . . . . 2 . . . Power 1 | . . . . . . . . . . . . . . 1 . . . Propulsion 4 | . . . . . . . 1 . 2 . . . . 1 . . . Utility 3 | . . . 2 . . . 1 . . . . . . . . . . Weapon . | . . . . . . . . . . . . . . . . . . Parts Attached 234 | 8 12 2 21 6 6 2 29 57 31 4 . 2 . 7 . 11 36 Power 17 | 1 1 1 2 1 . . 2 3 2 . . 1 . 2 . . 1 Engine 9 | 1 1 . 2 1 . . 1 2 1 . . . . . . . . Core 7 | . . 1 . . . . 1 1 1 . . 1 . 2 . . . Reactor 1 | . . . . . . . . . . . . . . . . . 1 Propulsion 56 | 2 3 . 5 3 1 . 13 11 7 2 . . . 1 . . 8 Treads 30 | . 3 . 5 3 1 . 6 8 4 . . . . . . . . Leg 10 | . . . . . . . 4 1 . . . . . . . . 5 Wheel 7 | 2 . . . . . . 3 1 1 . . . . . . . . Hover 1 | . . . . . . . . . . . . . . . . . 1 Flight 8 | . . . . . . . . 1 2 2 . . . 1 . . 2 Utility 57 | 2 2 . 6 . 2 1 9 2 5 2 . 1 . 3 . 6 16 Device 18 | . . . 1 . . . . . 2 2 . 1 . . . 5 7 Storage 22 | 2 2 . 5 . 1 . 5 1 . . . . . 3 . . 3 Processor 1 | . . . . . . . . . 1 . . . . . . . . Hackware 1 | . . . . . . . . . . . . . . . . 1 . Protection 15 | . . . . . 1 1 4 1 2 . . . . . . . 6 Artifact . | . . . . . . . . . . . . . . . . . . Weapon 104 | 3 6 1 8 2 3 1 5 41 17 . . . . 1 . 5 11 Energy Gun 17 | 3 4 . . . . . 1 6 3 . . . . . . . . Energy Cannon 8 | . . . . . . . . 2 4 . . . . . . . 2 Ballistic Gun 43 | . 1 . 6 1 3 1 3 19 5 . . . . . . 1 3 Ballistic Cannon . | . . . . . . . . . . . . . . . . . . Launcher 15 | . . 1 1 1 . . 1 4 2 . . . . . . 2 3 Special Weapon 1 | . 1 . . . . . . . . . . . . . . . . Impact Weapon 3 | . . . . . . . . . 1 . . . . 1 . . 1 Slashing Weapon 13 | . . . 1 . . . . 10 2 . . . . . . . . Piercing Weapon 4 | . . . . . . . . . . . . . . . . 2 2 Special Melee Weapon . | . . . . . . . . . . . . . . . . . . Unidentified Prototypes 22 | . . . 3 . . . . 7 . . . . . . . 3 9 Parts Lost 86 | . 8 . 3 . 4 2 15 12 18 . . . . 1 . . 23 Power 11 | . 1 . . . . . 1 3 2 . . . . 1 . . 3 Propulsion 33 | . 2 . . . 1 . 9 7 7 . . . . . . . 7 Utility 12 | . . . . . . 1 2 . 1 . . . . . . . 8 Weapon 30 | . 5 . 3 . 3 1 3 2 8 . . . . . . . 5 Highest Loss Streak 10 | . 7 . 1 . 3 2 4 3 8 . . . . 1 . . 10 Average Slot Usage (%) 90 | . 90 100 98 100 92 88 95 98 79 76 76 72 69 80 80 78 73 Engine 6 | . 13 4 9 11 11 11 2 7 3 . . . . . . . . Core 3 | . . 9 . . . . 6 . 1 7 7 7 7 13 13 13 5 Treads 15 | . 14 28 22 22 22 22 19 15 16 . . . . . . . . Leg 4 | . . . . . . . 3 9 . . . . . . . . 19 Flight 2 | . . . . . . . . . 5 15 15 15 15 20 20 20 4 Device 1 | . . . . . . . . . 1 15 15 10 7 6 6 5 3 Storage 33 | . 28 28 42 44 36 22 34 42 30 15 15 15 15 20 20 20 21 Protection 1 | . . . . . . 11 7 2 1 . . . . . . . 1 Energy Gun 1 | . 15 8 . . . . 1 . 1 . . . . . . . . Ballistic Gun 13 | . 4 14 21 21 22 22 16 14 7 . . . . . . 3 2 Launcher 1 | . . 5 . . . . . . 1 7 7 7 7 6 6 1 3 Naked Turns . | . . . . . . . . . . . . . . . . . . Heaviest Build 141 | 14 41 42 78 78 126 114 141 97 100 46 46 46 44 59 57 72 80 Greatest Support 136 | 32 40 40 40 40 40 40 60 60 100 78 78 78 78 84 84 84 136 Greatest Overweight (x) 9 | . 2 1 1 1 3 2 8 9 4 . . . . . . . 3 Average Overweight (x) . | . 1 1 1 1 1 2 2 2 . . . . . . . . . Largest Inventory Capacity 42 | 8 16 16 28 28 36 30 42 34 34 16 16 16 16 20 20 20 20 Average Capacity 25 | 6 15 16 26 28 31 30 29 32 28 16 16 16 16 19 20 20 18 Most Carried 34 | 8 16 16 28 28 33 30 32 34 34 16 16 16 16 20 20 20 20 Average Carried 24 | 4 13 15 26 27 24 29 27 31 26 15 16 15 16 16 20 19 18 Final Capacity 34 | 8 16 16 28 28 30 30 28 34 16 16 16 16 16 20 20 20 4 Final Carried 34 | 8 16 16 27 28 30 30 28 34 16 16 16 16 16 20 20 20 4 Class Distribution -------------------- 69% | Hauler-Mutant 20% | Mutant 7% | Scavenger-Mutant Dominant Class ---------------- Mutant | -10/Materials Mutant | -10/Mines Hauler-Mutant | -9/Materials Hauler-Mutant | -9/Mines Hauler-Mutant | -9/Exiles Hauler-Mutant | -8/Mines Hauler-Mutant | -8/Materials Hauler-Mutant | -8/Storage Hauler-Mutant | -7/Factory Mutant | -7/Lower Caves Mutant | -7/Lower Caves Mutant | -7/Data Miner Mutant | -6/Proximity Caves Hauler-Mutant | -6/Factory Hauler-Mutant | -6/Lower Caves Hauler-Mutant | -6/Zion Scavenger-Mutant | -6/Deep Caves Resources | -11 -10 -10 -9 -9 -9 -8 -8 -8 -7 -7 -7 -7 -6 -6 -6 -6 -6 ----------- Run | Scr Mat Min Mat Min Exi Min Mat Sto Fac Low Low Dat Pro Fac Low Zio Dee Matter Collected 6956 | 275 332 32 784 263 499 304 1215 1720 369 17 . 200 . . . 91 855 Remotely . | . . . . . . . . . . . . . . . . . . Salvage Created 8199 | 132 520 55 1188 297 99 210 1322 2487 963 67 107 29 58 56 . . 609 Parts 431 | 9 26 2 64 16 . 14 78 126 45 5 4 2 6 10 . . 24 Haulers Intercepted 11 | . 2 . 4 . . . . 5 . . . . . . . . . Recyclers Shooed 4 | . . . . . . . . 3 1 . . . . . . . . Parts Field Recycled 16 | . . . . . . . . . . . . . . . . 11 5 Retrieved Matter 138 | . . . . . . . . . . . . . . . . 99 39 Parts Self-Destructed 8 | . . . . . . . . . . 2 3 . 3 . . . . Prevented . | . . . . . . . . . . . . . . . . . . Kills | -11 -10 -10 -9 -9 -9 -8 -8 -8 -7 -7 -7 -7 -6 -6 -6 -6 -6 ------- Run | Scr Mat Min Mat Min Exi Min Mat Sto Fac Low Low Dat Pro Fac Low Zio Dee Combat Hostiles Destroyed 169 | . 9 1 22 10 1 4 30 47 22 3 3 . 4 3 . . 10 Melee 4 | . 1 . 1 . . . . 1 1 . . . . . . . . Guns 108 | . 7 1 15 6 1 4 27 34 12 . . . . . . . 1 Cannons 5 | . . . . . . . . . 5 . . . . . . . . AOE 50 | . . . 6 4 . . 3 12 4 3 3 . 4 3 . . 8 Classes Destroyed 17 | 2 2 . 7 1 . 1 . 1 . . . . . . . . 3 Worker 7 | . . . 2 . . 1 3 1 . . . . . . . . . Builder 5 | . . . 1 . . . 1 2 . . . . . 1 . . . Tunneler 2 | 2 . . . . . . . . . . . . . . . . . Hauler 11 | . 2 . 4 . . . . 5 . . . . . . . . . Recycler 5 | 1 . . 2 . . . . 2 . . . . . . . . . Operator 1 | . . . 1 . . . . . . . . . . . . . . Watcher 6 | . . . 1 . . . 3 2 . . . . . . . . . Swarmer 36 | . . . 6 4 . . 6 6 7 . . . 4 3 . . . Grunt 77 | . 9 1 9 4 . 2 18 20 8 3 3 . . . . . . Brawler 4 | . . . . 1 . 1 1 . 1 . . . . . . . . Duelist 10 | . . . 2 1 . . 1 4 2 . . . . . . . . Protector 3 | . . . . . . . . 3 . . . . . . . . . Sentry 26 | . . . 5 . . . 3 14 4 . . . . . . . . Hunter 2 | . . . . . . 1 1 . . . . . . . . . . Z-Light 6 | . . . . . . . . . . . . . . . . . 6 Assembled 3 | . . . . . . . . . . . . . . . . . 3 Golem 1 | . . . . . . . . . . . . . . . . . 1 Best Kill Streak 9 | 2 3 1 8 4 1 3 8 9 9 3 3 1 4 4 . . 3 Combat Bots Only 9 | . 4 1 7 4 1 3 4 8 9 3 3 . 4 3 . . 3 Max Kills in Single Turn 4 | 1 1 1 4 3 1 1 2 3 2 2 2 1 3 3 . . 1 Gunslinging 1 | . . . 1 . . . . 1 1 . . . . . . . . Exploded 3 | . . . 3 3 . . 2 3 2 2 2 . 3 2 . . 1 Melee 1 | . 1 . 1 . . . . 1 1 . . . . . . . . Uniques/NPCs Destroyed 3 | . . . . . 1 . . . . . . 1 . . . . 1 8R-AWN (-9/Exiles) Data Miner (-7/Data Miner) Z-Imprinter (-6/Deep Caves) Combat | -11 -10 -10 -9 -9 -9 -8 -8 -8 -7 -7 -7 -7 -6 -6 -6 -6 -6 -------- Run | Scr Mat Min Mat Min Exi Min Mat Sto Fac Low Low Dat Pro Fac Low Zio Dee Damage Taken 16737 | 18 765 85 898 272 1077 223 2356 2690 3212 156 87 45 177 319 . . 4357 Core 2392 | 9 177 . 150 70 119 . 229 264 438 33 . . 13 22 . . 868 Absorbed by Shields . | . . . . . . . . . . . . . . . . . . Core Remaining (%) 35 | 96 . 25 . . . 15 . 10 . . . . 30 . . . . Volleys Fired 650 | 14 58 4 76 23 38 14 116 154 72 5 3 . 3 5 . . 65 Largest 2 | 1 2 2 2 2 2 2 2 2 2 1 1 . 1 1 . . 2 Hottest 93 | 40 60 70 53 46 46 46 93 93 70 30 30 . 30 30 . . 58 Shots Fired 1129 | 14 70 8 148 44 76 28 227 295 121 5 3 . 3 5 . . 82 Gun 1024 | 14 70 8 145 42 76 28 224 286 93 . . . . . . . 38 Cannon 38 | . . . . . . . . . 24 . . . . . . . 14 Launcher 67 | . . . 3 2 . . 3 9 4 5 3 . 3 5 . . 30 Special . | . . . . . . . . . . . . . . . . . . Kinetic 930 | . 12 4 145 42 76 28 210 285 90 . . . . . . . 38 Thermal 86 | . 29 4 . . . . 14 1 24 . . . . . . . 14 Explosive 38 | . . . 3 2 . . 3 9 4 5 3 . 3 5 . . 1 Electromagnetic 75 | 14 29 . . . . . . . 3 . . . . . . . 29 Robot Hit Streak 35 | 7 11 8 16 8 25 14 14 14 35 6 . . 1 1 . . 10 Robot Miss Streak 4 | 2 3 1 3 1 1 3 4 4 3 . 2 . 1 2 . . 4 Penetration Max 1 | . . . . . . . 1 1 1 . . . . . . . . Secondary Targets 11 | . . . 1 . . 1 2 5 2 . . . . . . . . Max Gunslinging Chain 1 | . . . 1 . . 1 1 1 1 . . . . . . . . Shots Hit Robots 859 | 11 54 6 106 33 69 20 171 211 104 4 . 1 2 2 . . 65 Core Hits 409 | 4 22 3 55 15 14 9 79 103 46 10 6 1 5 6 . . 31 Critical Hits 8 | . . . . 2 . 1 . 2 3 . . . . . . . . Critical Kills 1 | . . . . . . 1 . . . . . . . . . . . Critical Parts Destroyed 6 | . . . . 2 . . . 2 2 . . . . . . . . Melee Attacks 76 | . . . 2 . . . . 23 15 . . 6 . 2 . . 28 Impact 10 | . . . . . . . . . 1 . . 6 . 2 . . 1 Slashing 39 | . . . 2 . . . . 23 14 . . . . . . . . Piercing 27 | . . . . . . . . . . . . . . . . . 27 Sneak Attacks 1 | . . . . . . . . . . . . 1 . . . . . Combat Hostiles . | . . . . . . . . . . . . . . . . . . Follow-up Attacks 1 | . . . . . . . . . . . . . . . . . 1 Damage Inflicted 19328 | 174 708 75 1843 806 1064 261 3447 4849 2505 392 198 71 296 326 . . 2313 Guns 12904 | 147 683 75 1424 474 1064 249 3150 3611 1346 . . . . . . . 681 Cannons 984 | . . . . . . . . . 644 . . . . . . . 340 Explosions 4593 | 27 . . 381 321 . . 297 1095 393 392 198 . 296 326 . . 867 Melee 741 | . . . 30 . . . . 93 122 . . 71 . . . . 425 Ramming 106 | . 25 . 8 11 . 12 . 50 . . . . . . . . . Kinetic 11911 | . 86 23 1424 474 1064 249 2953 3611 1346 . . . . . . . 681 Thermal 1591 | 27 265 52 . . . . 197 . 644 . . . . . . . 406 Explosive 3738 | . . . 381 321 . . 297 1095 393 392 198 . 296 326 . . 39 Electromagnetic 1241 | 147 332 . . . . . . . . . . . . . . . 762 Impact 101 | . . . . . . . . . . . . 71 . . . . 30 Slashing 245 | . . . 30 . . . . 93 122 . . . . . . . . Piercing 395 | . . . . . . . . . . . . . . . . . 395 Highest Corruption 3 | . . . . . . . 3 3 . . . . . . . . 1 Average Corruption 2 | . . . . . . . 3 3 . . . . . . . . 1 Corruption Purged . | . . . . . . . . . . . . . . . . . . Effects 52 | . . . . . . . 8 43 . . . . . . . . 1 Message Errors 15 | . . . . . . . 3 11 . . . . . . . . 1 Matter Fused 13 | . . . . . . . . 13 . . . . . . . . . Heat Flow Errors 5 | . . . . . . . 1 4 . . . . . . . . . Energy Discharges 6 | . . . . . . . 1 5 . . . . . . . . . Data Loss (minor) 4 | . . . . . . . 1 3 . . . . . . . . . Targeting Errors 7 | . . . . . . . 1 6 . . . . . . . . . Weapon Failures 2 | . . . . . . . 1 1 . . . . . . . . . Overload Shots . | . . . . . . . . . . . . . . . . . . Overflow Damage 205 | . . . 11 41 . . 34 6 7 . . . . 4 . . 102 Projectiles . | . . . . . . . . . . . . . . . . . . Explosions 149 | . . . 11 41 . . 34 6 7 . . . . 4 . . 46 Melee 56 | . . . . . . . . . . . . . . . . . 56 Knockbacks 2 | . 1 . . . . . . 1 . . . . . . . . . Impact 2 | . 1 . . . . . . 1 . . . . . . . . . Kinetic . | . . . . . . . . . . . . . . . . . . Secondary . | . . . . . . . . . . . . . . . . . . Self-Inflicted Damage 597 | 19 . . 39 . . . 97 53 38 . 36 . 51 71 . . 193 Shots 22 | 1 . . 1 . . . 2 3 1 . 1 . 1 2 . . 10 Rammed 21 | . 9 1 1 2 . 1 . 7 . . . . . . . . . Targets Rammed 21 | . 9 1 1 2 . 1 . 7 . . . . . . . . . Kicked . | . . . . . . . . . . . . . . . . . . Crushed . | . . . . . . . . . . . . . . . . . . Highest Temperature 271 | 12 72 72 8 . 4 11 180 254 16 . 16 . 5 31 . 271 101 Average Temperature 39 | 12 29 41 2 . 1 2 31 37 5 . 10 . 5 13 . 121 29 Received Heat Transfer 4407 | . 429 36 321 57 . 36 963 1044 750 72 18 6 18 75 . . 582 Effects 3 | . . . . . . . . . . . . . . . . 3 . Interference 3 | . . . . . . . . . . . . . . . . 3 . Siege Activations . | . . . . . . . . . . . . . . . . . . Robots Corrupted 2 | . 1 . . . . . . . . . . . . . . . 1 Combat Hostiles 2 | . 1 . . . . . . . . . . . . . . . 1 Parts Fried 15 | 2 2 . . . . . 1 . . . . . . . . . 10 Impact Corruptions . | . . . . . . . . . . . . . . . . . . Robots Melted . | . . . . . . . . . . . . . . . . . . Combat Hostiles . | . . . . . . . . . . . . . . . . . . Parts Melted 1 | . . . . . . . . . 1 . . . . . . . . Heat Transferred 2529 | 50 600 148 . . . . 481 . 600 . . . . . . . 650 Parts Sabotaged . | . . . . . . . . . . . . . . . . . . Parts Stolen . | . . . . . . . . . . . . . . . . . . Parts Stripped . | . . . . . . . . . . . . . . . . . . Power Chain Reactions 3 | 1 . . . . . . . . . . . . . . . . 2 Missiles Intercepted . | . . . . . . . . . . . . . . . . . . Alert | -11 -10 -10 -9 -9 -9 -8 -8 -8 -7 -7 -7 -7 -6 -6 -6 -6 -6 ------- Run | Scr Mat Min Mat Min Exi Min Mat Sto Fac Low Low Dat Pro Fac Low Zio Dee Peak Influence 1016 | 15 167 139 372 190 . 95 322 1016 746 . . . . 456 . . . Initial 459 | . 9 24 13 115 . . 1 135 459 . . . . 56 . . . Average 278 | 5 83 39 241 106 . 83 170 551 572 . . . . 297 . . . Maximum Alert Level 3 | . . . 1 . . . 1 3 3 . . . . 2 . . . Low Security (%) 49 | 100 100 100 35 100 . 100 63 4 . . . . . 16 . . . Level 1 25 | . . . 64 . . . 36 30 . . . . . 53 . . . Level 2 19 | . . . . . . . . 45 88 . . . . 30 . . . Level 3 5 | . . . . . . . . 19 11 . . . . . . . . Level 4 . | . . . . . . . . . . . . . . . . . . Level 5 . | . . . . . . . . . . . . . . . . . . High Security . | . . . . . . . . . . . . . . . . . . Max Security . | . . . . . . . . . . . . . . . . . . Squads Dispatched 38 | . 4 . 4 . . . 5 15 7 . . . 1 2 . . . Investigation 10 | . 2 . 3 . . . 2 1 1 . . . . 1 . . . Extermination . | . . . . . . . . . . . . . . . . . . Reinforcement 9 | . 2 . 1 . . . . 4 1 . . . . 1 . . . Assault 7 | . . . . . . . . 4 2 . . . 1 . . . . Garrison 12 | . . . . . . . 3 6 3 . . . . . . . . Intercept . | . . . . . . . . . . . . . . . . . . Construction Impeded 2 | . . . 1 . . . . . . . . . . 1 . . . Haulers Reinforced . | . . . . . . . . . . . . . . . . . . Stealth | -11 -10 -10 -9 -9 -9 -8 -8 -8 -7 -7 -7 -7 -6 -6 -6 -6 -6 --------- Run | Scr Mat Min Mat Min Exi Min Mat Sto Fac Low Low Dat Pro Fac Low Zio Dee Distress Signals 8 | . . . 1 . . . 2 4 1 . . . . . . . . Communications Jammed . | . . . . . . . . . . . . . . . . . . Distress Signals . | . . . . . . . . . . . . . . . . . . Times Spotted 332 | . 14 5 37 10 1 6 54 83 53 15 7 4 16 10 . . 17 Peak Tracking Total 13 | . 4 3 6 2 2 3 9 10 11 8 4 4 13 8 . . 6 Tactical Retreats 39 | . 1 1 1 . . . 4 12 9 3 3 . . 2 . . 3 Traps | -11 -10 -10 -9 -9 -9 -8 -8 -8 -7 -7 -7 -7 -6 -6 -6 -6 -6 ------- Run | Scr Mat Min Mat Min Exi Min Mat Sto Fac Low Low Dat Pro Fac Low Zio Dee Traps Triggered 4 | . 1 . 1 . . . . 2 . . . . . . . . . Indirectly . | . . . . . . . . . . . . . . . . . . Trap Hack Attempts . | . . . . . . . . . . . . . . . . . . Triggered . | . . . . . . . . . . . . . . . . . . Disarmed . | . . . . . . . . . . . . . . . . . . Reprogrammed . | . . . . . . . . . . . . . . . . . . Reused 1 | . . . . . . . 1 . . . . . . . . . . Traps Extracted . | . . . . . . . . . . . . . . . . . . Installed 1 | . . . . . . . 1 . . . . . . . . . . Triggered 1 | . . . . . . . 1 . . . . . . . . . . Exploded 1 | . . . . . 1 . . . . . . . . . . . . Machines | -11 -10 -10 -9 -9 -9 -8 -8 -8 -7 -7 -7 -7 -6 -6 -6 -6 -6 ---------- Run | Scr Mat Min Mat Min Exi Min Mat Sto Fac Low Low Dat Pro Fac Low Zio Dee Machines Disabled 19 | . . . . 1 . . 6 10 . . . . . 1 . . 1 Max in Single Turn 1 | . . . . 1 . . 1 1 . . . . . 1 . . 1 Garrison Access 2 | . . . . . . . . 1 . . . . . 1 . . . Machines Sabotaged . | . . . . . . . . . . . . . . . . . . Garrisons Compromised . | . . . . . . . . . . . . . . . . . . Overloaded Fab Kills . | . . . . . . . . . . . . . . . . . . Fab Network Shutdowns . | . . . . . . . . . . . . . . . . . . Hacking | -11 -10 -10 -9 -9 -9 -8 -8 -8 -7 -7 -7 -7 -6 -6 -6 -6 -6 --------- Run | Scr Mat Min Mat Min Exi Min Mat Sto Fac Low Low Dat Pro Fac Low Zio Dee Machines Accessed 39 | . 3 1 7 . 2 . 5 10 2 . . 4 . 4 . 1 . Terminals 21 | . 2 . 5 . . . 2 8 1 . . . . 3 . . . Fabricators . | . . . . . . . . . . . . . . . . . . Repair Stations 1 | . . . . . . . . 1 . . . . . . . . . Recycling Units 4 | . 1 . 1 . . . 2 . . . . . . . . . . Scanalyzers 2 | . . . 1 . . . 1 . . . . . . . . . . Garrison Access 3 | . . . . . . . . 1 1 . . . . 1 . . . Total Hacks 110 | . 10 1 22 . 2 . 8 24 3 . . 26 . 9 . 5 . Successful 67 | . 4 1 11 . 2 . 6 8 . . . 26 . 4 . 5 . Failed 43 | . 6 . 11 . . . 2 16 3 . . . . 5 . . . Catastrophic 10 | . 1 . 1 . . . 1 3 2 . . . . 2 . . . Database Lockouts . | . . . . . . . . . . . . . . . . . . Manual 52 | . 8 . 11 . 1 . 5 16 1 . . . . 5 . 5 . Terminals 60 | . 9 . 18 . . . 3 22 1 . . . . 7 . . . Fabricators . | . . . . . . . . . . . . . . . . . . Repair Stations 1 | . . . . . . . . 1 . . . . . . . . . Recycling Units 4 | . 1 . 1 . . . 2 . . . . . . . . . . Scanalyzers 6 | . . . 3 . . . 3 . . . . . . . . . . Garrison Access 5 | . . . . . . . . 1 2 . . . . 2 . . . Terminal Hacks 50 | . 1 1 5 . 2 . 2 6 . . . 26 . 2 . 5 . Record 12 | . . . . . 1 . . . . . . 11 . . . . . Part Schematic 12 | . . . 1 . . . . 1 . . . 5 . . . 5 . Robot Schematic 7 | . . . . . . . . . . . . 7 . . . . . Robot Analysis 2 | . . . 1 . . . . 1 . . . . . . . . . Prototype ID Bank 5 | . 1 . 1 . . . . . . . . 3 . . . . . Open Door 3 | . . 1 . . . . . 2 . . . . . . . . . Branch Access Points 2 | . . . . . . . 1 . . . . . . 1 . . . Unreport Threat 2 | . . . . . . . 1 1 . . . . . . . . . Locate Traps 3 | . . . 1 . . . . 1 . . . . . 1 . . . Hauler Manifests 1 | . . . 1 . . . . . . . . . . . . . . EX-Prototype ID Bank 1 | . . . . . 1 . . . . . . . . . . . . Fabricator Hacks . | . . . . . . . . . . . . . . . . . . Repair Station Hacks . | . . . . . . . . . . . . . . . . . . Recycling Unit Hacks . | . . . . . . . . . . . . . . . . . . Scanalyzer 5 | . . . 3 . . . 2 . . . . . . . . . . Insert Component 2 | . . . 1 . . . 1 . . . . . . . . . . Analyze 3 | . . . 2 . . . 1 . . . . . . . . . . Garrison Access Hacks 1 | . . . . . . . . 1 . . . . . . . . . Seal Access 1 | . . . . . . . . 1 . . . . . . . . . Unauthorized Hacks 11 | . 3 . 3 . . . 2 1 . . . . . 2 . . . Terminals 6 | . 2 . 2 . . . . 1 . . . . . 1 . . . Assimilate 3 | . 1 . 1 . . . . . . . . . . 1 . . . Botnet 1 | . . . . . . . . 1 . . . . . . . . . Operators 2 | . 1 . 1 . . . . . . . . . . . . . . Fabricators . | . . . . . . . . . . . . . . . . . . Repair Stations . | . . . . . . . . . . . . . . . . . . Recycling Units 4 | . 1 . 1 . . . 2 . . . . . . . . . . Tunnel 4 | . 1 . 1 . . . 2 . . . . . . . . . . Scanalyzers . | . . . . . . . . . . . . . . . . . . Garrison Access 1 | . . . . . . . . . . . . . . 1 . . . Jam 1 | . . . . . . . . . . . . . . 1 . . . Data Cores Recovered 1 | . . . 1 . . . . . . . . . . . . . . Used . | . . . . . . . . . . . . . . . . . . Hacking Detections 26 | . 2 . 6 . . . 2 10 2 . . . . 4 . . . Full Trace Events 3 | . . . 1 . . . . 1 1 . . . . . . . . Feedback Events . | . . . . . . . . . . . . . . . . . . Feedback Blocked . | . . . . . . . . . . . . . . . . . . Robot Schematics Acquired 7 | . . . . . . . . . . . . 7 . . . . . Robots Built . | . . . . . . . . . . . . . . . . . . Matter . | . . . . . . . . . . . . . . . . . . Time . | . . . . . . . . . . . . . . . . . . Total Robot Build Rating . | . . . . . . . . . . . . . . . . . . Part Schematics Acquired 14 | . . . 2 . . . 1 1 . . . 5 . . . 5 . Parts Built . | . . . . . . . . . . . . . . . . . . Matter . | . . . . . . . . . . . . . . . . . . Time . | . . . . . . . . . . . . . . . . . . Total Part Build Rating . | . . . . . . . . . . . . . . . . . . Parts Repaired . | . . . . . . . . . . . . . . . . . . Time . | . . . . . . . . . . . . . . . . . . Parts Recycled . | . . . . . . . . . . . . . . . . . . Recycled Matter . | . . . . . . . . . . . . . . . . . . Retrieved Matter . | . . . . . . . . . . . . . . . . . . Retrieved Components . | . . . . . . . . . . . . . . . . . . Parts Scanalyzed 2 | . . . 1 . . . 1 . . . . . . . . . . Part Schematics Acquired 2 | . . . 1 . . . 1 . . . . . . . . . . Parts Damaged . | . . . . . . . . . . . . . . . . . . Bothacking | -11 -10 -10 -9 -9 -9 -8 -8 -8 -7 -7 -7 -7 -6 -6 -6 -6 -6 ------------ Run | Scr Mat Min Mat Min Exi Min Mat Sto Fac Low Low Dat Pro Fac Low Zio Dee Used RIF Installer . | . . . . . . . . . . . . . . . . . . Robots Hacked . | . . . . . . . . . . . . . . . . . . Non-combat . | . . . . . . . . . . . . . . . . . . Combat . | . . . . . . . . . . . . . . . . . . Robot Hacks Applied . | . . . . . . . . . . . . . . . . . . Relay Couplers Released 4 | . . . . . . . . 4 . . . . . . . . . Machine Destruction 4 | . . . . . . . . 4 . . . . . . . . . Robots Rewired . | . . . . . . . . . . . . . . . . . . Allies Hacked . | . . . . . . . . . . . . . . . . . . Hacks Repelled . | . . . . . . . . . . . . . . . . . . Allies | -11 -10 -10 -9 -9 -9 -8 -8 -8 -7 -7 -7 -7 -6 -6 -6 -6 -6 -------- Run | Scr Mat Min Mat Min Exi Min Mat Sto Fac Low Low Dat Pro Fac Low Zio Dee Total Allies 18 | . . 3 . . . . . 12 . . . . . 1 . 2 . Largest Group 10 | . . 3 1 . . . . 10 . . . . . 1 1 2 2 Highest-Rated Group 188 | . . 40 16 . . . . 173 . . . . . 26 26 188 188 Highest-Rated Ally 94 | . . 16 16 . . . . 31 . . . . . 26 26 94 94 Total Orders . | . . . . . . . . . . . . . . . . . . Ally Attacks 155 | . . 25 4 . . . . 96 . . . . . . . . 30 Total Damage 2411 | . . 293 65 . . . . 1369 . . . . . . . . 684 Kills 22 | . . 7 1 . . . . 11 . . . . . . . . 3 Allies Corrupted . | . . . . . . . . . . . . . . . . . . Allies Melted . | . . . . . . . . . . . . . . . . . . Intel | -11 -10 -10 -9 -9 -9 -8 -8 -8 -7 -7 -7 -7 -6 -6 -6 -6 -6 ------- Run | Scr Mat Min Mat Min Exi Min Mat Sto Fac Low Low Dat Pro Fac Low Zio Dee Robot Analysis Total 2 | . . . 1 . . . . 1 . . . . . . . . . Derelict Logs Recovered 6 | . . 1 . 1 . . . . . 1 2 . . . . 1 . Drone Launches 5 | . . . . . . . . . . . . . . . . . 5 Drone Recoveries . | . . . . . . . . . . . . . . . . . . Exploration | -11 -10 -10 -9 -9 -9 -8 -8 -8 -7 -7 -7 -7 -6 -6 -6 -6 -6 ------------- Run | Scr Mat Min Mat Min Exi Min Mat Sto Fac Low Low Dat Pro Fac Low Zio Dee Turns Passed 13626 | 119 578 1147 1745 843 1430 427 1372 2267 824 133 135 71 83 115 12 558 1767 Spaces Moved 8522 | 60 266 611 741 417 651 191 489 769 611 296 331 111 197 231 34 1098 1418 Core 3 | 2 . . . . . . . . . . . . . . . . 1 Treads 3702 | . 122 611 741 417 651 191 384 412 173 . . . . . . . . Legs 1192 | . . . . . . . 42 229 . . . . . . . . 921 Wheels 393 | 58 144 . . . . . 63 128 . . . . . . . . . Hover . | . . . . . . . . . . . . . . . . . . Flight 3232 | . . . . . . . . . 438 296 331 111 197 231 34 1098 496 Fastest Speed 34 | 50 100 180 180 180 180 200 160 160 39 39 39 39 39 34 34 34 34 Average Speed 119 | 98 143 180 180 180 197 200 183 182 78 39 39 39 39 34 34 34 90 Slowest Speed 249 | 100 180 180 180 180 220 200 240 240 240 39 39 39 39 39 34 34 249 Overloaded Moves . | . . . . . . . . . . . . . . . . . . Propulsion Burnouts . | . . . . . . . . . . . . . . . . . . Robots Hopped 16 | . . . . . . . . . 7 . 1 1 2 5 . . . Cave-ins Triggered . | . . . . . . . . . . . . . . . . . . Exploration Rate (%) 56 | 5 48 100 61 93 70 65 42 95 18 59 59 77 45 9 8 85 72 Regions Visited 17 Branch Regions 12 Pre-discovered Areas 11 | . 1 1 1 1 1 . 2 . . . . 1 . . . 3 . Known Exits Taken 10 | . . . . . . 1 1 . 1 1 1 1 1 1 1 1 . Unknown Exits Taken 7 | 1 1 1 1 1 1 . . 1 . . . . . . . . . Scrap Searched 14 | . . 4 . 1 . 1 . . . 1 1 . 3 . . 3 . Spaces Dug 39 | . . . 1 . . . . 8 4 11 . . . 2 . . 13 Terrain Destroyed 373 | 2 . . 18 15 . . 44 67 36 47 34 . 20 60 . . 30 Melee 28 | . . . 1 . . . . 8 4 . . . . 2 . . 13 Projectile 6 | . . . . . . . 1 . 3 . . . . . . . 2 AOE 339 | 2 . . 17 15 . . 43 59 29 47 34 . 20 58 . . 15 Terrain Rammed . | . . . . . . . . . . . . . . . . . . Walls Destroyed . | . . . . . . . . . . . . . . . . . . Machines Disabled . | . . . . . . . . . . . . . . . . . . Actions | -11 -10 -10 -9 -9 -9 -8 -8 -8 -7 -7 -7 -7 -6 -6 -6 -6 -6 --------- Run | Scr Mat Min Mat Min Exi Min Mat Sto Fac Low Low Dat Pro Fac Low Zio Dee Total 10791 | 104 387 655 1017 466 735 209 744 1352 821 306 332 131 197 253 33 1282 1767 Wait 956 | 13 18 20 127 8 1 . 51 273 78 . . 7 . 5 . 161 194 Move 8476 | 59 265 610 740 416 650 191 488 769 597 295 328 108 192 220 33 1097 1418 Hop 15 | . . . . . . . . . 6 . 1 1 2 5 . . . Pick Up 189 | 9 18 8 28 5 22 2 33 32 9 1 . 3 . 6 . 4 9 Fast Attach 55 | 7 2 1 1 . 1 . 7 14 5 . . . . 2 . 4 11 Attach 81 | . 6 . 7 . 5 2 13 8 16 . . 1 . 2 . 4 17 Detach 4 | . . . 1 . . . . . 1 . . . . . . . 2 Swap 99 | 1 4 1 13 6 . . 9 35 10 4 . 1 . 3 . 4 8 Drop 161 | 1 7 10 21 6 18 . 26 28 12 1 . 4 . 3 . 8 16 Fire 650 | 14 58 4 76 23 38 14 116 154 72 5 3 . 3 5 . . 65 Melee 75 | . . . 2 . . . . 23 15 . . 6 . 2 . . 27 Ram . | . . . . . . . . . . . . . . . . . . Kick 2 | . . . . . . . . 2 . . . . . . . . . Crush 17 | . 9 1 1 2 . . . 4 . . . . . . . . . Escape Stasis 10 | . . . . . . . . 10 . . . . . . . . . Rewire . | . . . . . . . . . . . . . . . . . . Trap 1 | . . . . . . . 1 . . . . . . . . . . Miscellaneous . | . . . . . . . . . . . . . . . . . . Route ------- -11/Scrapyard -10/Materials (discovered 2 exits: *Mat / *Min) -10/Mines (discovered 2 exits: *Mat x2) -9/Materials (discovered 4 exits: *Mat x2 / [*Min x2]) -9/Mines (discovered 3 exits: *Mat x2 / *Exi) -9/Exiles -8/Mines -8/Materials (discovered 3 exits: *Fac / *Sto x2) -8/Storage -7/Factory (discovered 2 exits: *Fac / *Low) -7/Lower Caves -7/Lower Caves (discovered 2 exits: *Fac / *Dat) -7/Data Miner -6/Proximity Caves -6/Factory (discovered 5 exits: *Fac / *Low x2 / Ext x2) -6/Lower Caves -6/Zion (discovered 2 exits: *Dee / [*Pro]) -6/Deep Caves (discovered 1 exit: [*Pro]) History --------- Turn | Location | Event 24 | -11/Scrapyard | Discovered new exit (range 15) 120 | -11/Scrapyard | Entered Materials 309 | -10/Materials | Build established: Mutant 312 | -10/Materials | Core integrity fell below 50% 336 | -10/Materials | Lost 7 parts (1p1n5w) 464 | -10/Materials | Discovered new exit (range 14) 489 | -10/Materials | Discovered new exit (range 15) 698 | -10/Materials | Entered Mines 699 | -10/Mines | Learned location of Storage (-8) 956 | -10/Mines | Found the Drone Emporium 967 | -10/Mines | Found Prototype Device 1140 | -10/Mines | Found a hidden stash of uninstalled traps 1170 | -10/Mines | Discovered new exit (range 10) 1175 | -10/Mines | Assisted by bots powering up and referring to "LRC-V3" 1267 | -10/Mines | Learned 2 Materials zone layouts 1443 | -10/Mines | Received a Rocket Launcher from a helpful Derelict 1498 | -10/Mines | Discovered new exit (range 5) 1845 | -10/Mines | Entered Materials 1845 | -9/Materials | Accompanied by 1 ally 1845 | -9/Materials | Evolved 2 slots: Utility x2 1845 | -9/Materials | Identified Bomb Drone Bay 1846 | -9/Materials | Identified exit to Materials 2058 | -9/Materials | Discovered new exit (range 12) 2140 | -9/Materials | Build established: Hauler-Mutant 2196 | -9/Materials | Destroyed 7 combat bots 2279 | -9/Materials | Discovered new exit (range 15) 2721 | -9/Materials | Discovered exit to Materials (range 16) 3590 | -9/Materials | Entered Mines 3931 | -9/Mines | Joined a pair of Derelicts in attacking an 0b10 outpost 4004 | -9/Mines | Learned location of Zion (-6) 4015 | -9/Mines | Discovered exit to Materials (range 11) 4029 | -9/Mines | A weapon hastily lodged in a ceiling crevice suddenly fell to the ground 4316 | -9/Mines | Core integrity fell below 50% 4361 | -9/Mines | Discovered exit to Materials (range 14) 4415 | -9/Mines | Deemed a non-threat by the Exiles lab entrance 4415 | -9/Mines | Discovered new exit (range 5) 4433 | -9/Mines | Entered Exiles 4475 | -9/Exiles | Met 8R-AWN 4507 | -9/Exiles | Met EX-HEX 4594 | -9/Exiles | Met EX-DEC 4700 | -9/Exiles | Discovered new exit (range 11) 5378 | -9/Exiles | Met EX-BIN 5402 | -9/Exiles | Aligned with FarCom system 5404 | -9/Exiles | Given EX-Vault access code 5455 | -9/Exiles | Opened EX-Vault 5468 | -9/Exiles | Found Flying Fortress v7 5476 | -9/Exiles | Found Field Lobotomy Kit 5490 | -9/Exiles | Found Chronowheel 5539 | -9/Exiles | Warned to stay clear of 0b10 Research branches 5547 | -9/Exiles | Exiles lab attacked by MAIN.C 5711 | -9/Exiles | Attacked by the Exiles 5786 | -9/Exiles | Core integrity fell below 20% 5791 | -9/Exiles | Lost 3 parts (1n2w) 5825 | -9/Exiles | Destroyed 8R-AWN 5863 | -9/Exiles | Stole three prototypes: Flying Fortress v7, Chronowheel, Field Lobotomy Kit 5863 | -9/Exiles | Entered Mines 6286 | -8/Mines | Discovered exit to Materials (range 2) 6290 | -8/Mines | Entered Materials 6290 | -8/Materials | Evolved 2 slots: Propulsion x1, Utility x1 6823 | -8/Materials | Discovered new exit (range 16) 6993 | -8/Materials | Identified exit to Storage 7026 | -8/Materials | Garrison activated, responded to threat 7382 | -8/Materials | Lost 4 parts (2n1u1w) 7529 | -8/Materials | Lost 4 parts (1p1n1u1w) 7662 | -8/Materials | Entered Storage 7738 | -8/Storage | Assisted by bots powering up and referring to "LRC-V3" 8225 | -8/Storage | Garrison activated, responded to threat 8421 | -8/Storage | Garrison activated, responded to threat 8433 | -8/Storage | Core integrity fell below 50% 8534 | -8/Storage | Lost 3 parts (1p1n1w) 8583 | -8/Storage | Destroyed 8 combat bots 9185 | -8/Storage | Garrison activated, responded to threat 9262 | -8/Storage | First assault squad dispatched 9557 | -8/Storage | Core integrity fell below 20% 9818 | -8/Storage | Discovered new exit (range 15) 9860 | -8/Storage | Met a pair of Derelict thieves 9929 | -8/Storage | Entered Factory 9929 | -7/Factory | Evolved 2 slots: Propulsion x2 10250 | -7/Factory | Garrison activated, responded to threat 10288 | -7/Factory | Destroyed 9 combat bots 10298 | -7/Factory | Lost 6 parts (1p4n1w) 10329 | -7/Factory | First assault squad dispatched 10335 | -7/Factory | Discovered new exit (range 6) 10392 | -7/Factory | Identified exit to Factory 10414 | -7/Factory | Lost 8 parts (3n1u4w) 10466 | -7/Factory | Lost 3 parts (1p2w) 10470 | -7/Factory | Core integrity fell below 50% 10748 | -7/Factory | Discovered new exit (range 11) 10752 | -7/Factory | Identified exit to Lower Caves 10753 | -7/Factory | Entered Lower Caves 10755 | -7/Lower Caves | Encountered a Warlord checkpoint 10878 | -7/Lower Caves | Learned Factory garrison access intel 10878 | -7/Lower Caves | Discovered new exit (range 4) 10886 | -7/Lower Caves | Attracted the attention of an 0b10 base 10886 | -7/Lower Caves | Identified exit to Lower Caves 10886 | -7/Lower Caves | Entered another Lower Caves area 10902 | -7/Lower Caves | Build established: Mutant 10905 | -7/Lower Caves | Discovered exit to Factory (range 13) 10932 | -7/Lower Caves | Identified exit to Data Miner 10981 | -7/Lower Caves | Attracted the attention of an 0b10 checkpoint 11021 | -7/Lower Caves | Entered Data Miner 11021 | -7/Data Miner | Discovered new exit (range 6) 11029 | -7/Data Miner | Met Data Miner 11036 | -7/Data Miner | Learned location of Section 7 (-2) 11036 | -7/Data Miner | Acquired the access code to Warlord's prototype stash 11044 | -7/Data Miner | Received God Mode back door access code from Data Miner 11061 | -7/Data Miner | Activated Chronowheel 11063 | -7/Data Miner | Destroyed Data Miner 11066 | -7/Data Miner | Found Prototype Hackware 11069 | -7/Data Miner | Found Prototype Hackware 11071 | -7/Data Miner | Data Conduit disabled 11092 | -7/Data Miner | Identified exit to Proximity Caves 11092 | -7/Data Miner | Entered Proximity Caves 11134 | -6/Proximity Caves | Attracted the attention of an 0b10 outpost 11173 | -6/Proximity Caves | Discovered exit to Factory (range 5) 11175 | -6/Proximity Caves | Entered Factory 11175 | -6/Factory | Evolved 2 slots: Power x1, Propulsion x1 11176 | -6/Factory | Identified exit to Lower Caves 11177 | -6/Factory | Loaded intel: 4 garrison access locations 11189 | -6/Factory | Discovered new exit (range 16) 11207 | -6/Factory | Identified exit to Factory 11244 | -6/Factory | Identified exit to Extension 11290 | -6/Factory | Entered Lower Caves 11290 | -6/Lower Caves | Accompanied by 1 ally 11298 | -6/Lower Caves | A Derelict revealed a hidden shortcut to a safe place 11301 | -6/Lower Caves | Identified exit to Zion 11302 | -6/Lower Caves | Entered Zion 11312 | -6/Zion | Learned Factory emergency access door positions 11323 | -6/Zion | Received a visual enhancement algorithm 11327 | -6/Zion | Discovered new exit (range 12) 11359 | -6/Zion | Given A8's code to call for help 11389 | -6/Zion | Given the Hacking Drone Bay 11392 | -6/Zion | Found Prototype Device 11393 | -6/Zion | Identified Hacking Drone Bay 11403 | -6/Zion | Found Prototype Launcher 11403 | -6/Zion | Identified Rocket Array 11406 | -6/Zion | Found Prototype Launcher 11406 | -6/Zion | Identified Gui. Missile Launcher 11467 | -6/Zion | Build established: Hauler-Mutant 11541 | -6/Zion | Acquired unknown access codes intercepted by a Zionite 11565 | -6/Zion | Learned Factory garrison access intel 11580 | -6/Zion | Learned location of Warlord (-4) 11685 | -6/Zion | Found Relay Coupler [Programmer] 11703 | -6/Zion | Opened final containment barrier to the Deep Caves 11708 | -6/Zion | Discovered new exit (range 3) 11708 | -6/Zion | Saw the warning signs outside the Deep Caves entrance 11718 | -6/Zion | Enhanced Grunt warped into view, answering call for help 11722 | -6/Zion | Enhanced Grunt warped into view, answering call for help 11859 | -6/Zion | Identified exit to Deep Caves 11860 | -6/Zion | Entered Deep Caves 11860 | -6/Deep Caves | Accompanied by 2 allies 11957 | -6/Deep Caves | Attacked by Z-Imprinter 12120 | -6/Deep Caves | Z-Facility disabled 12162 | -6/Deep Caves | Found Prototype Protection 12162 | -6/Deep Caves | Identified Zio. Weapon Casing 12249 | -6/Deep Caves | Lost 3 parts (2n1u) 12419 | -6/Deep Caves | Found Prototype Protection 12419 | -6/Deep Caves | Identified Zio. Heavy Carapace 12627 | -6/Deep Caves | Build established: Scavenger-Mutant 12722 | -6/Deep Caves | Discovered new exit (range 7) 13054 | -6/Deep Caves | Spotted as-87063 13175 | -6/Deep Caves | Core integrity fell below 50% 13183 | -6/Deep Caves | Destroyed as-87063 13198 | -6/Deep Caves | Lost 10 parts (2p3n3u2w) 13474 | -6/Deep Caves | Build established: Mutant 13574 | -6/Deep Caves | Spotted as-76477 13613 | -6/Deep Caves | Core integrity fell below 20% 13627 | -6/Deep Caves | Destroyed by as-76477 with Assembled Focal Cannon Last Messages --------------- 13614_ Bomb Drone detonates. 13614_ Bomb Drone destroyed. 13615_ Bomb Drone released from Bomb Drone Bay. 13615_ Bomb Drone sneak attacks. 13615_ Bomb Drone detonates. 13615_ Bomb Drone destroyed. 13615_ Bomb Drone Bay destroyed. 13615_ Slug penetrates as-76477. 13615_ Destroyed Prototype Energy Cannon. 13616_ as-76477 GOLEM Unit beginning Prototype Energy Cannon integration. 13618_ The unstable cave ceiling collapses. 13618_ Gauss Rifle destroyed. 13618_ Zio. Composite Leg I destroyed. 13621_ The unstable cave ceiling collapses. 13621_ Gui. Missile Launcher destroyed. 13622_ The unstable cave ceiling collapses. 13624_ Dropped Lrg. Storage Unit. 13626_ Powered Hammer follow-up attack on as-76477. 13627_ The unstable cave ceiling collapses. [Achievement: Collector] Map ----- +----------------------------------------------------+ | | | | | | | | | | | | | | | | | | | | | | | | | | | | | | | ???????????????????????????????????????????????? | | ??????????????????????????????????????####?????? | | ?????????? ????????????????????????### ##????? | | ?????????"" ? ?????????##??????????#" #????? | | ????????? ?####### ####???????## ##???# | | ????????" # # ##??????#" ##### | | ????????"" # #??????## | | ????????" # ######?#" | | ?????????" !! # #;;;#### | | ????????" !!!# ;# ### | | ?????????"" |@ # ## | | ????????" G # ; | | ????????" # #;# ### # | | ????????" ######?# ### ## | | ????????# #??????# #?# #? | | ?????????" # #???#### ### ##? | | ?????????" ##??## ## ##?? | | ?????????" ####### # #??? | | ?????????" # ##??#"# # #??? | | ?????????" * ### #?### # #??? | | ????????# g ?## ###"" #??? | | ????????? * ?# ### ####??? | | ????????? bh ####?## ###?????? | | ????????? ?????# ##???????? | | ?????????? / * ?????## ##???????? | | ?????????? /* ???#### #???????? | | ??????????? * * * #?## #???????? | | ??????????? ?# #???????? | | ????????????? ## #???????? | | ????????????? / "# #???????? | | ?????????? * ### #???????? | | ?????????" / #?##### ##???????? | | ?????????" ] ###???## ##????????? | | ?????????" " #????# #???????### | | ?????????" ] ""#????# #?????# | +----------------------------------------------------+ Best States ------------- Heat Dissipation 63 Energy Generation 40 Energy Capacity 1100 Matter Stores 468 Matter Capacity 500 Sight Range 16 Robot Scan Range 16 Terrain Scan Density 10 Armor Coverage 1200 Resistance: KI 20 Resistance: TH 10 Core Shielding 20 Weapon Shielding 100 Melee Speed Boost 20 Evasion (%) 63 Recoil Reduction 5 Defensive Hacking 10 Item Schematics ----------------- Med. Storage Unit | -9/Materials | Hacked Imp. Flight Unit | -9/Materials | Scanalyzed Lrg. Storage Unit | -8/Materials | Scanalyzed Arm. Treads | -8/Storage | Hacked Combat Drone Bay | -7/Data Miner | Free Lgt. Regenerative Plating | -7/Data Miner | Free Exp. Sensor Array | -7/Data Miner | Free Mni. Smartbomb Launcher | -7/Data Miner | Free Exp. Targeting Computer | -7/Data Miner | Free Hvy. Riot Gun | -6/Zion | Free Battle Cannon | -6/Zion | Free Battle Rifle | -6/Zion | Free Enh. Flamer | -6/Zion | Free Ripper | -6/Zion | Free Robot Schematics ------------------ S-27 Virus | -7/Data Miner | Free G-50 Soldier | -7/Data Miner | Free X-72 Disruptor | -7/Data Miner | Free P-70 Sage | -7/Data Miner | Free I-47 Archangel | -7/Data Miner | Free I-36 Angel | -7/Data Miner | Free H-66 Slayer | -7/Data Miner | Free Fabricated ------------ Nothing Alien Tech Used ----------------- None Achievements -------------- Collector Challenges ------------ None Game ------ Seed DataNodePurifier Manual? 0 Play Time 02:18:12 Cumulative 203.6 hours Start 2020.10.05 @ 18:11:20 End 2020.10.05 @ 21:59:04 Sessions 3 Manual Loads 0 Difficulty Rogue Special Mode None Game No. 224 Rogue 224 Adventurer 0 Explorer 0 Win Type - Total 2 Types 2/0/0/0/0/0/0/0/0 Lore% 61 Gallery% 75 Achievement% 58 Wizard Run 0 Options --------- ASCII 0 Keyboard 0 Movement Numpad Keybinds 0 Fullscreen 2 Font 24/Smallcaps Map View 76x50 Tactical HUD 1 Map Filters NONE Filters NONE Steam 1 RUN: ddc143ec-4497-42ac-afb5-478eac7d206a